Workbook

Sheet 例題24 １次元拡散平板伴一次反応
A1: 微分方程式数 | B1: 2 | F1: 定数 | J1: (dcA/dy) | K1: DABcA'=
A2: y= | B2: cA | C2: g | F2: k1= | G2: 2.6 | H2: /s | K2: mol/s
A3: 0.00145 | B3: 0.02114193396 | C3: -3.998154012 | F3: DAB= | G3: 7e-07 | H3: m2/s | J3: =(B12-B13)/A13 -> 346.4484771 | K3: =G3*J3 -> 0.000242513934
B4: cA'= | C4: g'= | F4: L= | G4: 0.0015 | H4: m
A5: 微分方程式→ | B5: =C3 -> -3.998154012 | C5: =(1/G3)*G2*B3 -> 78527.18327 | K5: (L/2)k1cAs[mol/s]=
K6: =(G4/2)*G2*B12 -> 0.0003705
A7: 積分区間y=[a, | B7: 0
A8: b] | B8: 0.00145 | K8: η=
A9: 積分刻み幅Δy | B9: 5e-05 | K9: =K3/K6 -> 0.6545585262
A10: 計算結果
A11: y[m] | B11: cA[mol/m3] | C11: g | K11: φ=
A12: 0 | B12: 0.19 | C12: -363.5 | F12: ←初期値 | K12: =(G4/2)*(G2/G3)^0.5 -> 1.445436167
A13: 5e-05 | B13: 0.1726775761 | C13: -329.9290642
A14: 0.0001 | B14: 0.1569560051 | C14: -299.4167124
A15: 0.00015 | B15: 0.1426895413 | C15: -271.6800713
A16: 0.0002 | B16: 0.1297459295 | C16: -246.4619995
A17: 0.00025 | B17: 0.118005178 | C17: -223.5287037
A18: 0.0003 | B18: 0.1073584471 | C18: -202.6675711
A19: 0.00035 | B19: 0.09770703937 | C19: -183.6851982
A20: 0.0004 | B20: 0.08896148528 | C20: -166.4055982
A21: 0.00045 | B21: 0.08104071349 | C21: -150.6685688
A22: 0.0005 | B22: 0.07387129941 | C22: -136.3282073
A23: 0.00055 | B23: 0.06738678456 | C23: -123.2515581
A24: 0.0006 | B24: 0.06152706054 | C24: -111.3173793
A25: 0.00065 | B25: 0.05623781182 | C25: -100.4150194
A26: 0.0007 | B26: 0.05147001229 | C26: -90.44339073
A27: 0.00075 | B27: 0.04717947083 | C27: -81.31003265
A28: 0.0008 | B28: 0.04332642174 | C28: -72.93025381
A29: 0.00085 | B29: 0.03987515613 | C29: -65.22634709
A30: 0.0009 | B30: 0.03679369105 | C30: -58.12686886
A31: 0.00095 | B31: 0.03405347306 | C31: -51.56597655
A32: 0.001 | B32: 0.03162911364 | C32: -45.48281791
A33: 0.00105 | B33: 0.02949815402 | C33: -39.82096666
A34: 0.0011 | B34: 0.02764085705 | C34: -34.52789908
A35: 0.00115 | B35: 0.02604002445 | C35: -29.55450673
A36: 0.0012 | B36: 0.02468083755 | C36: -24.85464085
A37: 0.00125 | B37: 0.0235507201 | C37: -20.38468417
A38: 0.0013 | B38: 0.02263922189 | C38: -16.10314603
A39: 0.00135 | B39: 0.02193792219 | C39: -11.97027734
A40: 0.0014 | B40: 0.02144035187 | C40: -7.947701531
A41: 0.00145 | B41: 0.02114193379 | C41: -3.998058163

Sheet 平板解析解
A1: L | B1: 0.0015 | C1: m
A2: k1 | B2: 2.6 | C2: /s
A3: DAB | B3: 7e-07 | C3: m2/s
A5: ｃAｓ | B5: 0.19
A6: y | B6: cA/cA0 | C6: cA
A7: 0 | B7: =COSH(($B$1-A7)*SQRT($B$2/$B$3))/COSH($B$1*SQRT($B$2/$B$3)) -> 1 | C7: =B7*$B$5 -> 0.19
A8: 0.0001 | B8: =COSH(($B$1-A8)*SQRT($B$2/$B$3))/COSH($B$1*SQRT($B$2/$B$3)) -> 0.8259010484 | C8: =B8*$B$5 -> 0.1569211992
A9: 0.0003 | B9: 0.5646772303 | C9: =B9*$B$5 -> 0.1072886738
A10: 0.0005 | B10: 0.3883921716 | C10: 0.0737945126
A11: 0.0007 | B11: 0.2705290703 | C11: 0.05140052336
A12: 0.0009 | B12: 0.1933589568 | C12: 0.03673820179
A13: 0.0011 | B13: 0.1452739011 | C13: 0.02760204121
A14: 0.0013 | B14: 0.1190409482 | C14: 0.02261778017
A15: 0.0014 | B15: 0.1127766287 | C15: 0.02142755946
A16: 0.00145 | B16: 0.1112285648 | C16: 0.02113342731
